[Event "Titled Tuesday Blitz May 9 Late 2023"]
[White "Cruz, William Ferreira Da"]
[Black "6PackPlayer"]
[WhiteFideId "2118050"]
[WhiteElo "2223"]
[BlackElo "2250"]
[Result "0-1"]
[Round "03"]
[TimeControl "180+2"]
[Date "2023.05.09"]
[WhiteClock "0:00:07"]
[BlackClock "0:00:17"]

1. d4 {[%clk 0:03:00]}  c5 {[%clk 0:02:59]} 2. d5 {[%clk 0:02:59]}  e6 {[%clk 0:02:59]} 3. c4 {[%clk 0:02:58]}  exd5 {[%clk 0:02:59]} 4. cxd5 {[%clk 0:02:57]}  d6 {[%clk 0:03:00]} 5. Nc3 {[%clk 0:02:56]}  a6 {[%clk 0:03:01]} 6. a4 {[%clk 0:02:55]}  g6 {[%clk 0:03:01]} 7. Nf3 {[%clk 0:02:53]}  Bg7 {[%clk 0:03:02]} 8. Bf4 {[%clk 0:02:52]}  Nf6 {[%clk 0:02:54]} 9. h3 {[%clk 0:02:52]}  O-O {[%clk 0:02:49]} 10. e3 {[%clk 0:02:52]}  Bf5 {[%clk 0:02:37]} 11. Nd2 {[%clk 0:02:51]}  Re8 {[%clk 0:02:08]} 12. g4 {[%clk 0:02:50]}  Be4 {[%clk 0:02:06]} 13. Ndxe4 {[%clk 0:02:33]}  Nxe4 {[%clk 0:02:07]} 14. Nxe4 {[%clk 0:02:00]}  Rxe4 {[%clk 0:02:00]} 15. Bg2 {[%clk 0:01:55]}  Rb4 {[%clk 0:01:46]} 16. O-O {[%clk 0:01:55]}  Rxb2 {[%clk 0:01:36]} 17. Rb1 {[%clk 0:01:55]}  Rb4 {[%clk 0:01:23]} 18. Qd2 {[%clk 0:01:40]}  a5 {[%clk 0:01:13]} 19. e4 {[%clk 0:01:39]}  Rxa4 {[%clk 0:00:58]} 20. Rxb7 {[%clk 0:01:36]}  Rb4 {[%clk 0:00:58]} 21. Rb1 {[%clk 0:01:30]}  Ra6 {[%clk 0:00:34]} 22. Qd3 {[%clk 0:01:10]}  Rab6 {[%clk 0:00:32]} 23. Rxb6 {[%clk 0:01:09]}  Qxb6 {[%clk 0:00:33]} 24. Re1 {[%clk 0:01:03]}  c4 {[%clk 0:00:27]} 25. Qg3 {[%clk 0:01:03]}  Rb1 {[%clk 0:00:24]} 26. Rxb1 {[%clk 0:00:53]}  Qxb1+ {[%clk 0:00:25]} 27. Kh2 {[%clk 0:00:53]}  c3 {[%clk 0:00:25]} 28. e5 {[%clk 0:00:38]}  c2 {[%clk 0:00:19]} 29. Be4 {[%clk 0:00:37]}  c1=Q {[%clk 0:00:18]} 30. Bxb1 {[%clk 0:00:34]}  Qxb1 {[%clk 0:00:18]} 31. exd6 {[%clk 0:00:34]}  Nd7 {[%clk 0:00:18]} 32. Qe3 {[%clk 0:00:33]}  Qb8 {[%clk 0:00:14]} 33. Qe7 {[%clk 0:00:33]}  Qc8 {[%clk 0:00:15]} 34. h4 {[%clk 0:00:30]}  h5 {[%clk 0:00:15]} 35. gxh5 {[%clk 0:00:29]}  gxh5 {[%clk 0:00:16]} 36. Qg5 {[%clk 0:00:28]}  a4 {[%clk 0:00:16]} 37. Qxh5 {[%clk 0:00:23]}  a3 {[%clk 0:00:16]} 38. Bh6 {[%clk 0:00:23]}  Qf8 {[%clk 0:00:15]} 39. Qg4 {[%clk 0:00:18]}  a2 {[%clk 0:00:14]} 40. Bxg7 {[%clk 0:00:09]}  Qxg7 {[%clk 0:00:14]} 41. Qxd7 {[%clk 0:00:10]}  a1=Q {[%clk 0:00:14]} 42. Qc8+ {[%clk 0:00:10]}  Kh7 {[%clk 0:00:14]} 43. Qf5+ {[%clk 0:00:11]}  Qg6 {[%clk 0:00:14]} 44. Qf4 {[%clk 0:00:10]}  Qaf6 {[%clk 0:00:14]} 45. Qg3 {[%clk 0:00:09]}  Qxd6 {[%clk 0:00:14]} 46. f4 {[%clk 0:00:08]}  Qxg3+ {[%clk 0:00:13]} 47. Kxg3 {[%clk 0:00:08]}  Qxd5 {[%clk 0:00:14]} 48. Kg4 {[%clk 0:00:08]}  f5+ {[%clk 0:00:13]} 49. Kg5 {[%clk 0:00:09]}  Kg7 {[%clk 0:00:14]} 50. h5 {[%clk 0:00:09]}  Qe6 {[%clk 0:00:14]} 51. h6+ {[%clk 0:00:09]}  Qxh6+ {[%clk 0:00:14]} 52. Kxf5 {[%clk 0:00:09]}  Qf6+ {[%clk 0:00:15]} 53. Ke4 {[%clk 0:00:09]}  Kg6 {[%clk 0:00:16]} 54. f5+ {[%clk 0:00:10]}  Qxf5+ {[%clk 0:00:16]} 55. Ke3 {[%clk 0:00:07]}  Qg4 {[%clk 0:00:17]} 0-1


[Site "https://www.chess.com"]

[Event "Titled Tuesday Blitz May 9 Late 2023"]
[White "Dragomirescu, Robin-Alexandru"]
[Black "Smith, Garrett L"]
[WhiteFideId "1213849"]
[BlackFideId "2024829"]
[WhiteElo "2356"]
[BlackElo "2242"]
[Result "1-0"]
[Round "03"]
[TimeControl "180+2"]
[Date "2023.05.09"]
[WhiteClock "0:00:33"]
[BlackClock "0:00:25"]

1. Nf3 {[%clk 0:03:00]}  c5 {[%clk 0:03:00]} 2. e4 {[%clk 0:02:59]}  Nc6 {[%clk 0:03:00]} 3. b3 {[%clk 0:02:57]}  g6 {[%clk 0:02:59]} 4. Bb2 {[%clk 0:02:57]}  Nf6 {[%clk 0:02:59]} 5. Bxf6 {[%clk 0:02:57]}  exf6 {[%clk 0:02:59]} 6. Nc3 {[%clk 0:02:57]}  Bg7 {[%clk 0:02:55]} 7. Bc4 {[%clk 0:02:56]}  d6 {[%clk 0:02:55]} 8. O-O {[%clk 0:02:55]}  O-O {[%clk 0:02:55]} 9. Rb1 {[%clk 0:02:04]}  f5 {[%clk 0:02:51]} 10. exf5 {[%clk 0:02:05]}  Bxf5 {[%clk 0:02:50]} 11. a3 {[%clk 0:02:02]}  Qd7 {[%clk 0:02:46]} 12. b4 {[%clk 0:01:58]}  cxb4 {[%clk 0:02:45]} 13. axb4 {[%clk 0:01:59]}  Bg4 {[%clk 0:02:44]} 14. Bd5 {[%clk 0:01:55]}  Ne7 {[%clk 0:02:26]} 15. h3 {[%clk 0:01:48]}  Nxd5 {[%clk 0:02:22]} 16. Nxd5 {[%clk 0:01:46]}  Be6 {[%clk 0:02:19]} 17. Nf4 {[%clk 0:01:45]}  Rfc8 {[%clk 0:02:16]} 18. c3 {[%clk 0:01:29]}  b5 {[%clk 0:02:07]} 19. Re1 {[%clk 0:01:29]}  a5 {[%clk 0:01:59]} 20. bxa5 {[%clk 0:01:28]}  Rxa5 {[%clk 0:02:00]} 21. Nxe6 {[%clk 0:01:19]}  fxe6 {[%clk 0:02:00]} 22. Qe2 {[%clk 0:01:19]}  e5 {[%clk 0:01:58]} 23. Rb4 {[%clk 0:01:18]}  Bf8 {[%clk 0:01:52]} 24. Reb1 {[%clk 0:01:18]}  Rc5 {[%clk 0:01:25]} 25. d4 {[%clk 0:01:19]}  exd4 {[%clk 0:01:23]} 26. cxd4 {[%clk 0:01:20]}  Rf5 {[%clk 0:01:21]} 27. g4 {[%clk 0:01:08]}  Rd5 {[%clk 0:01:13]} 28. Qe4 {[%clk 0:01:04]}  Qf7 {[%clk 0:01:13]} 29. Rc1 {[%clk 0:00:59]}  Ra3 {[%clk 0:01:10]} 30. Kg2 {[%clk 0:00:58]}  h5 {[%clk 0:01:06]} 31. Rc8 {[%clk 0:00:46]}  Kg7 {[%clk 0:00:51]} 32. Rb1 {[%clk 0:00:39]}  hxg4 {[%clk 0:00:38]} 33. hxg4 {[%clk 0:00:39]}  b4 {[%clk 0:00:36]} 34. Rxb4 {[%clk 0:00:38]}  Rda5 {[%clk 0:00:35]} 35. Rbb8 {[%clk 0:00:38]}  d5 {[%clk 0:00:25]} 36. Qe5+ {[%clk 0:00:33]} 1-0


[Site "https://www.chess.com"]

[Event "Titled Tuesday Blitz May 9 Late 2023"]
[White "Djordjevic, Dejan N"]
[Black "Bilan, Danila"]
[WhiteFideId "913316"]
[BlackFideId "24161918"]
[WhiteElo "2261"]
[BlackElo "2182"]
[Result "0-1"]
[Round "03"]
[TimeControl "180+2"]
[Date "2023.05.09"]
[WhiteClock "0:00:00"]
[BlackClock "0:00:06"]

1. e4 {[%clk 0:03:00]}  c6 {[%clk 0:03:00]} 2. d4 {[%clk 0:03:00]}  d5 {[%clk 0:03:00]} 3. Nd2 {[%clk 0:03:01]}  dxe4 {[%clk 0:02:59]} 4. Nxe4 {[%clk 0:03:01]}  Bf5 {[%clk 0:02:59]} 5. Ng5 {[%clk 0:03:00]}  Nf6 {[%clk 0:02:58]} 6. Bc4 {[%clk 0:02:59]}  e6 {[%clk 0:02:58]} 7. Ne2 {[%clk 0:02:55]}  h6 {[%clk 0:02:52]} 8. Nf3 {[%clk 0:02:54]}  Bd6 {[%clk 0:02:45]} 9. Ng3 {[%clk 0:02:54]}  Bh7 {[%clk 0:02:05]} 10. O-O {[%clk 0:02:53]}  Nbd7 {[%clk 0:01:59]} 11. c3 {[%clk 0:02:52]}  Qc7 {[%clk 0:01:46]} 12. Re1 {[%clk 0:02:48]}  O-O {[%clk 0:01:42]} 13. a4 {[%clk 0:02:47]}  Rad8 {[%clk 0:01:32]} 14. a5 {[%clk 0:02:45]}  c5 {[%clk 0:01:30]} 15. Qb3 {[%clk 0:02:40]}  cxd4 {[%clk 0:01:24]} 16. Nxd4 {[%clk 0:02:39]}  Nc5 {[%clk 0:01:22]} 17. Qa2 {[%clk 0:02:25]}  a6 {[%clk 0:01:17]} 18. Be3 {[%clk 0:02:11]}  Nd3 {[%clk 0:01:00]} 19. Re2 {[%clk 0:01:31]}  Nd5 {[%clk 0:00:35]} 20. Bxd5 {[%clk 0:01:18]}  exd5 {[%clk 0:00:36]} 21. Ndf5 {[%clk 0:01:13]}  Bxf5 {[%clk 0:00:29]} 22. Nxf5 {[%clk 0:01:08]}  Bxh2+ {[%clk 0:00:29]} 23. Kh1 {[%clk 0:01:05]}  Bf4 {[%clk 0:00:17]} 24. Bb6 {[%clk 0:01:02]}  Qd7 {[%clk 0:00:09]} 25. Bxd8 {[%clk 0:00:59]}  Qxf5 {[%clk 0:00:09]} 26. Bh4 {[%clk 0:00:43]}  Qh5 {[%clk 0:00:08]} 27. Kg1 {[%clk 0:00:22]}  Qxe2 {[%clk 0:00:07]} 28. Qxd5 {[%clk 0:00:20]}  Bg5 {[%clk 0:00:05]} 29. Bg3 {[%clk 0:00:20]}  Nf4 {[%clk 0:00:05]} 30. Qxb7 {[%clk 0:00:16]}  Nh5 {[%clk 0:00:04]} 31. Bh2 {[%clk 0:00:14]}  Bf4 {[%clk 0:00:04]} 32. Bxf4 {[%clk 0:00:12]}  Nxf4 {[%clk 0:00:05]} 33. b4 {[%clk 0:00:11]}  Rd8 {[%clk 0:00:04]} 34. Rf1 {[%clk 0:00:07]}  Qg4 {[%clk 0:00:03]} 35. Qf3 {[%clk 0:00:06]}  Ne2+ {[%clk 0:00:04]} 36. Kh2 {[%clk 0:00:05]}  Qh4+ {[%clk 0:00:04]} 37. Qh3 {[%clk 0:00:05]}  Qxh3+ {[%clk 0:00:04]} 38. Kxh3 {[%clk 0:00:05]}  Nxc3 {[%clk 0:00:05]} 39. Rc1 {[%clk 0:00:05]}  Nb5 {[%clk 0:00:05]} 40. Rc6 {[%clk 0:00:05]}  Rd5 {[%clk 0:00:05]} 41. Rxa6 {[%clk 0:00:05]}  Rd4 {[%clk 0:00:05]} 42. Ra8+ {[%clk 0:00:02]}  Kh7 {[%clk 0:00:05]} 43. a6 {[%clk 0:00:02]}  Rxb4 {[%clk 0:00:05]} 44. Rb8 {[%clk 0:00:02]}  Rb3+ {[%clk 0:00:04]} 45. f3 {[%clk 0:00:02]}  Ra3 {[%clk 0:00:04]} 46. Rxb5 {[%clk 0:00:01]}  Rxa6 {[%clk 0:00:05]} 47. Rb7 {[%clk 0:00:01]}  Rf6 {[%clk 0:00:05]} 48. Kg3 {[%clk 0:00:02]}  Kg6 {[%clk 0:00:06]} 49. Rc7 {[%clk 0:00:02]}  Rd6 {[%clk 0:00:06]} 50. Rb7 {[%clk 0:00:03]}  Kf6 {[%clk 0:00:06]} 51. Rc7 {[%clk 0:00:03]}  g6 {[%clk 0:00:07]} 52. Rb7 {[%clk 0:00:03]}  Ke6 {[%clk 0:00:07]} 53. Rc7 {[%clk 0:00:04]}  g5 {[%clk 0:00:07]} 54. Rb7 {[%clk 0:00:04]}  Kf6 {[%clk 0:00:07]} 55. Rc7 {[%clk 0:00:04]}  Kg6 {[%clk 0:00:07]} 56. Rb7 {[%clk 0:00:04]}  f5 {[%clk 0:00:07]} 57. Rc7 {[%clk 0:00:03]}  f4+ {[%clk 0:00:07]} 58. Kh3 {[%clk 0:00:03]}  Kh5 {[%clk 0:00:07]} 59. Rc1 {[%clk 0:00:02]}  Rd2 {[%clk 0:00:07]} 60. Rb1 {[%clk 0:00:02]}  Rd6 {[%clk 0:00:05]} 61. Rc1 {[%clk 0:00:00]}  Kg6 {[%clk 0:00:06]} 0-1


[Site "https://www.chess.com"]

[Event "Titled Tuesday Blitz May 9 Late 2023"]
[White "Dmitriev, Sergey"]
[Black "Santos Flores, Alberto"]
[WhiteFideId "14101785"]
[BlackFideId "3601234"]
[WhiteElo "2132"]
[BlackElo "2235"]
[Result "0-1"]
[Round "03"]
[TimeControl "180+2"]
[Date "2023.05.09"]
[WhiteClock "0:00:24"]
[BlackClock "0:00:26"]

1. d4 {[%clk 0:03:00]}  d5 {[%clk 0:02:59]} 2. Bf4 {[%clk 0:02:59]}  Nf6 {[%clk 0:02:58]} 3. h3 {[%clk 0:02:54]}  c5 {[%clk 0:02:58]} 4. e3 {[%clk 0:02:54]}  Nc6 {[%clk 0:02:58]} 5. Nf3 {[%clk 0:02:52]}  Bf5 {[%clk 0:02:47]} 6. Bd3 {[%clk 0:02:50]}  Bxd3 {[%clk 0:02:47]} 7. Qxd3 {[%clk 0:02:48]}  e6 {[%clk 0:02:45]} 8. Nbd2 {[%clk 0:02:46]}  Qb6 {[%clk 0:02:44]} 9. b3 {[%clk 0:02:31]}  Rc8 {[%clk 0:02:35]} 10. c3 {[%clk 0:02:21]}  cxd4 {[%clk 0:02:33]} 11. exd4 {[%clk 0:02:18]}  Ba3 {[%clk 0:02:30]} 12. O-O {[%clk 0:02:13]}  O-O {[%clk 0:02:30]} 13. Rab1 {[%clk 0:02:09]}  a5 {[%clk 0:02:20]} 14. Ne5 {[%clk 0:02:03]}  Nxe5 {[%clk 0:02:19]} 15. dxe5 {[%clk 0:02:00]}  Nd7 {[%clk 0:02:11]} 16. c4 {[%clk 0:01:55]}  Nc5 {[%clk 0:01:55]} 17. Qg3 {[%clk 0:01:48]}  Rfd8 {[%clk 0:01:47]} 18. Bh6 {[%clk 0:01:39]}  g6 {[%clk 0:01:46]} 19. Bg5 {[%clk 0:01:35]}  Rd7 {[%clk 0:01:44]} 20. Bf6 {[%clk 0:01:34]}  Na6 {[%clk 0:01:36]} 21. Qh4 {[%clk 0:01:31]}  Bf8 {[%clk 0:01:34]} 22. Nf3 {[%clk 0:01:24]}  dxc4 {[%clk 0:01:26]} 23. Ng5 {[%clk 0:01:21]}  h6 {[%clk 0:01:25]} 24. bxc4 {[%clk 0:01:15]}  Qc7 {[%clk 0:01:19]} 25. Rfc1 {[%clk 0:01:08]}  Bg7 {[%clk 0:01:14]} 26. Bxg7 {[%clk 0:01:04]}  Kxg7 {[%clk 0:01:15]} 27. Nf3 {[%clk 0:01:04]}  Nc5 {[%clk 0:01:08]} 28. g4 {[%clk 0:00:55]}  Nd3 {[%clk 0:00:56]} 29. Rd1 {[%clk 0:00:48]}  Nxe5 {[%clk 0:00:46]} 30. Nxe5 {[%clk 0:00:38]}  Rxd1+ {[%clk 0:00:45]} 31. Rxd1 {[%clk 0:00:38]}  Qxe5 {[%clk 0:00:45]} 32. Qe7 {[%clk 0:00:37]}  Qf6 {[%clk 0:00:36]} 33. Qxb7 {[%clk 0:00:36]}  Rxc4 {[%clk 0:00:36]} 34. Qg2 {[%clk 0:00:31]}  Rc2 {[%clk 0:00:34]} 35. Rd3 {[%clk 0:00:30]}  Rxa2 {[%clk 0:00:29]} 36. Rf3 {[%clk 0:00:31]}  Ra1+ {[%clk 0:00:28]} 37. Kh2 {[%clk 0:00:29]}  Qe5+ {[%clk 0:00:29]} 38. Rg3 {[%clk 0:00:30]}  Ra3 {[%clk 0:00:29]} 39. f3 {[%clk 0:00:28]}  Re3 {[%clk 0:00:27]} 40. Kh1 {[%clk 0:00:25]}  Re1+ {[%clk 0:00:27]} 41. Qg1 {[%clk 0:00:25]}  Rxg1+ {[%clk 0:00:27]} 42. Kxg1 {[%clk 0:00:24]}  Qxg3+ {[%clk 0:00:26]} 0-1


[Site "https://www.chess.com"]

[Event "Titled Tuesday Blitz May 9 Late 2023"]
[White "Burke, Paul"]
[Black "Tifferet, Shaked"]
[WhiteFideId "2605767"]
[BlackFideId "2811529"]
[WhiteElo "1916"]
[BlackElo "2142"]
[Result "0-1"]
[Round "03"]
[TimeControl "180+2"]
[Date "2023.05.09"]
[WhiteClock "0:00:00"]
[BlackClock "0:00:08"]

1. e4 {[%clk 0:03:00]}  c5 {[%clk 0:02:58]} 2. d4 {[%clk 0:02:59]}  cxd4 {[%clk 0:02:58]} 3. c3 {[%clk 0:02:59]}  Nf6 {[%clk 0:02:58]} 4. e5 {[%clk 0:02:58]}  Nd5 {[%clk 0:02:58]} 5. Nf3 {[%clk 0:02:57]}  d6 {[%clk 0:02:58]} 6. cxd4 {[%clk 0:02:55]}  Nc6 {[%clk 0:02:57]} 7. Be2 {[%clk 0:02:48]}  g6 {[%clk 0:02:50]} 8. O-O {[%clk 0:02:47]}  Bg7 {[%clk 0:02:50]} 9. exd6 {[%clk 0:02:46]}  Qxd6 {[%clk 0:02:48]} 10. Nc3 {[%clk 0:02:44]}  O-O {[%clk 0:02:44]} 11. h3 {[%clk 0:02:25]}  Bf5 {[%clk 0:02:23]} 12. Nb5 {[%clk 0:02:11]}  Qd7 {[%clk 0:02:17]} 13. Be3 {[%clk 0:01:49]}  Rfd8 {[%clk 0:02:06]} 14. Qd2 {[%clk 0:01:32]}  Nxe3 {[%clk 0:02:00]} 15. fxe3 {[%clk 0:01:32]}  e5 {[%clk 0:01:59]} 16. d5 {[%clk 0:01:19]}  Ne7 {[%clk 0:01:41]} 17. d6 {[%clk 0:01:04]}  Nc8 {[%clk 0:01:37]} 18. Rad1 {[%clk 0:00:59]}  a6 {[%clk 0:01:26]} 19. Nc7 {[%clk 0:00:58]}  Rb8 {[%clk 0:01:25]} 20. Nh4 {[%clk 0:00:50]}  Be6 {[%clk 0:01:01]} 21. Nxe6 {[%clk 0:00:39]}  Qxe6 {[%clk 0:01:02]} 22. d7 {[%clk 0:00:37]}  Nb6 {[%clk 0:00:57]} 23. Bg4 {[%clk 0:00:29]}  f5 {[%clk 0:00:55]} 24. Nxf5 {[%clk 0:00:27]}  gxf5 {[%clk 0:00:56]} 25. Bxf5 {[%clk 0:00:27]}  Qxa2 {[%clk 0:00:48]} 26. Qc2 {[%clk 0:00:24]}  Kh8 {[%clk 0:00:41]} 27. Bxh7 {[%clk 0:00:24]}  Nxd7 {[%clk 0:00:32]} 28. Qf5 {[%clk 0:00:21]}  Nf6 {[%clk 0:00:14]} 29. Bg6 {[%clk 0:00:21]}  Rxd1 {[%clk 0:00:13]} 30. Rxd1 {[%clk 0:00:21]}  Qb3 {[%clk 0:00:08]} 31. Rf1 {[%clk 0:00:19]}  Qxe3+ {[%clk 0:00:08]} 32. Kh1 {[%clk 0:00:14]}  Rf8 {[%clk 0:00:08]} 33. Qc2 {[%clk 0:00:11]}  e4 {[%clk 0:00:05]} 34. Qf2 {[%clk 0:00:08]}  Qxf2 {[%clk 0:00:04]} 35. Rxf2 {[%clk 0:00:08]}  e3 {[%clk 0:00:05]} 36. Re2 {[%clk 0:00:08]}  Bh6 {[%clk 0:00:04]} 37. Bd3 {[%clk 0:00:05]}  Rd8 {[%clk 0:00:05]} 38. Bc4 {[%clk 0:00:04]}  Rd2 {[%clk 0:00:05]} 39. b3 {[%clk 0:00:03]}  Rxe2 {[%clk 0:00:05]} 40. Bxe2 {[%clk 0:00:02]}  Ne4 {[%clk 0:00:06]} 41. Kg1 {[%clk 0:00:01]}  Nc3 {[%clk 0:00:07]} 42. Kf1 {[%clk 0:00:01]}  Nxe2 {[%clk 0:00:07]} 43. Kxe2 {[%clk 0:00:00]}  Kg7 {[%clk 0:00:08]} 0-1


[Site "https://www.chess.com"]

[Event "Titled Tuesday Blitz May 9 Late 2023"]
[White "Rengifo Blancas, Renzo Jhonathan"]
[Black "Brueckner, Thomas"]
[WhiteFideId "3807185"]
[BlackFideId "4600452"]
[WhiteElo "2085"]
[BlackElo "2322"]
[Result "1-0"]
[Round "03"]
[TimeControl "180+2"]
[Date "2023.05.09"]
[WhiteClock "0:00:41"]
[BlackClock "0:00:00"]

1. e4 {[%clk 0:03:00]}  e5 {[%clk 0:02:59]} 2. Nf3 {[%clk 0:03:00]}  Nc6 {[%clk 0:02:59]} 3. d4 {[%clk 0:03:01]}  exd4 {[%clk 0:02:59]} 4. Bc4 {[%clk 0:03:02]}  Nf6 {[%clk 0:02:59]} 5. e5 {[%clk 0:03:02]}  Ne4 {[%clk 0:02:59]} 6. c3 {[%clk 0:02:58]}  d5 {[%clk 0:02:36]} 7. Bb3 {[%clk 0:02:49]}  Bg4 {[%clk 0:02:21]} 8. cxd4 {[%clk 0:02:47]}  Bb4+ {[%clk 0:02:18]} 9. Nbd2 {[%clk 0:02:47]}  Nxd2 {[%clk 0:02:05]} 10. Bxd2 {[%clk 0:02:47]}  Bxd2+ {[%clk 0:02:05]} 11. Qxd2 {[%clk 0:02:46]}  Bxf3 {[%clk 0:02:05]} 12. gxf3 {[%clk 0:02:46]}  Qh4 {[%clk 0:01:45]} 13. Ba4 {[%clk 0:02:44]}  O-O {[%clk 0:01:39]} 14. Bxc6 {[%clk 0:02:44]}  bxc6 {[%clk 0:01:40]} 15. Rc1 {[%clk 0:02:45]}  f6 {[%clk 0:01:37]} 16. Rxc6 {[%clk 0:02:43]}  fxe5 {[%clk 0:01:34]} 17. dxe5 {[%clk 0:02:41]}  Rad8 {[%clk 0:01:13]} 18. Rxc7 {[%clk 0:02:41]}  Rxf3 {[%clk 0:01:07]} 19. Rg1 {[%clk 0:02:37]}  Qe4+ {[%clk 0:01:05]} 20. Qe2 {[%clk 0:02:37]}  Qb1+ {[%clk 0:01:00]} 21. Qd1 {[%clk 0:02:37]}  Qe4+ {[%clk 0:00:59]} 22. Qe2 {[%clk 0:02:37]}  Qb1+ {[%clk 0:00:59]} 23. Qd1 {[%clk 0:02:30]}  Qe4+ {[%clk 0:00:59]} 24. Kf1 {[%clk 0:02:28]}  Rf7 {[%clk 0:00:57]} 25. Rxf7 {[%clk 0:02:26]}  Kxf7 {[%clk 0:00:57]} 26. Qh5+ {[%clk 0:02:27]}  Kg8 {[%clk 0:00:55]} 27. Qg5 {[%clk 0:02:27]}  Rd7 {[%clk 0:00:54]} 28. Qg4 {[%clk 0:02:24]}  Qd3+ {[%clk 0:00:50]} 29. Kg2 {[%clk 0:02:24]}  Re7 {[%clk 0:00:50]} 30. Qc8+ {[%clk 0:02:21]}  Kf7 {[%clk 0:00:49]} 31. Re1 {[%clk 0:02:18]}  Qg6+ {[%clk 0:00:43]} 32. Kh1 {[%clk 0:02:18]}  Qh5 {[%clk 0:00:36]} 33. e6+ {[%clk 0:02:14]}  Kg6 {[%clk 0:00:36]} 34. Qc3 {[%clk 0:01:52]}  Kh6 {[%clk 0:00:28]} 35. Qa3 {[%clk 0:01:43]}  Qh4 {[%clk 0:00:23]} 36. Qe3+ {[%clk 0:01:36]}  g5 {[%clk 0:00:22]} 37. Qe5 {[%clk 0:01:36]}  Qf4 {[%clk 0:00:19]} 38. Qxd5 {[%clk 0:01:31]}  Qxf2 {[%clk 0:00:14]} 39. Rg1 {[%clk 0:01:18]}  Qf4 {[%clk 0:00:13]} 40. Rg3 {[%clk 0:01:15]}  Qf1+ {[%clk 0:00:12]} 41. Rg1 {[%clk 0:01:15]}  Qf4 {[%clk 0:00:12]} 42. Qb3 {[%clk 0:00:57]}  Qh4 {[%clk 0:00:09]} 43. Qf3 {[%clk 0:00:46]}  Rxe6 {[%clk 0:00:07]} 44. Qf8+ {[%clk 0:00:45]}  Kg6 {[%clk 0:00:05]} 45. Qg8+ {[%clk 0:00:46]}  Kf6 {[%clk 0:00:04]} 46. Rf1+ {[%clk 0:00:45]}  Ke5 {[%clk 0:00:03]} 47. Qb8+ {[%clk 0:00:44]}  Ke4 {[%clk 0:00:02]} 48. Qb4+ {[%clk 0:00:44]}  Ke5 {[%clk 0:00:01]} 49. Re1+ {[%clk 0:00:42]}  Kf6 {[%clk 0:00:01]} 50. Qf8+ {[%clk 0:00:41]}  Kg6 {[%clk 0:00:00]} 51. Rxe6+ {[%clk 0:00:41]} 1-0


[Site "https://www.chess.com"]

[Event "Titled Tuesday Blitz May 9 Late 2023"]
[White "Kaplan, Avi Harrison"]
[Black "Horokoskii"]
[WhiteFideId "30934559"]
[WhiteElo "1983"]
[BlackElo "2093"]
[Result "0-1"]
[Round "03"]
[TimeControl "180+2"]
[Date "2023.05.09"]
[WhiteClock "0:00:03"]
[BlackClock "0:00:18"]

1. g3 {[%clk 0:03:00]}  Nf6 {[%clk 0:02:55]} 2. Bg2 {[%clk 0:03:00]}  g6 {[%clk 0:02:55]} 3. e4 {[%clk 0:02:59]}  Bg7 {[%clk 0:02:56]} 4. d4 {[%clk 0:02:59]}  d6 {[%clk 0:02:55]} 5. Nd2 {[%clk 0:02:58]}  Nbd7 {[%clk 0:02:53]} 6. h4 {[%clk 0:02:58]}  h5 {[%clk 0:02:51]} 7. c3 {[%clk 0:02:52]}  c6 {[%clk 0:02:51]} 8. Ngf3 {[%clk 0:02:50]}  Qc7 {[%clk 0:02:49]} 9. Qc2 {[%clk 0:02:43]}  b5 {[%clk 0:02:48]} 10. a4 {[%clk 0:02:41]}  a5 {[%clk 0:02:45]} 11. axb5 {[%clk 0:02:41]}  cxb5 {[%clk 0:02:46]} 12. e5 {[%clk 0:02:40]}  dxe5 {[%clk 0:02:44]} 13. Nxe5 {[%clk 0:02:40]}  Bb7 {[%clk 0:02:41]} 14. Bxb7 {[%clk 0:02:30]}  Qxb7 {[%clk 0:02:41]} 15. O-O {[%clk 0:02:30]}  Nxe5 {[%clk 0:02:41]} 16. dxe5 {[%clk 0:02:31]}  Ng4 {[%clk 0:02:39]} 17. e6 {[%clk 0:02:09]}  O-O {[%clk 0:01:59]} 18. exf7+ {[%clk 0:02:01]}  Kxf7 {[%clk 0:01:55]} 19. Ne4 {[%clk 0:01:57]}  Kg8 {[%clk 0:01:47]} 20. Ng5 {[%clk 0:01:54]}  Rf6 {[%clk 0:01:45]} 21. Qb3+ {[%clk 0:01:42]}  Kh8 {[%clk 0:01:38]} 22. Be3 {[%clk 0:01:32]}  Qc6 {[%clk 0:01:20]} 23. Bd4 {[%clk 0:01:22]}  e5 {[%clk 0:01:19]} 24. Be3 {[%clk 0:00:55]}  Raf8 {[%clk 0:01:18]} 25. Rae1 {[%clk 0:00:41]}  a4 {[%clk 0:01:16]} 26. Qc2 {[%clk 0:00:40]}  Bh6 {[%clk 0:01:08]} 27. Ne4 {[%clk 0:00:34]}  Nxe3 {[%clk 0:01:04]} 28. Rxe3 {[%clk 0:00:14]}  Bxe3 {[%clk 0:00:56]} 29. Nxf6 {[%clk 0:00:14]}  Qxf6 {[%clk 0:00:56]} 30. Qe2 {[%clk 0:00:11]}  Bh6 {[%clk 0:00:52]} 31. Qe4 {[%clk 0:00:11]}  Qf5 {[%clk 0:00:50]} 32. Qc6 {[%clk 0:00:10]}  e4 {[%clk 0:00:46]} 33. Kg2 {[%clk 0:00:05]}  Qf3+ {[%clk 0:00:44]} 34. Kg1 {[%clk 0:00:06]}  e3 {[%clk 0:00:41]} 35. Qxg6 {[%clk 0:00:06]}  exf2+ {[%clk 0:00:41]} 36. Kh2 {[%clk 0:00:06]}  Bg7 {[%clk 0:00:37]} 37. c4 {[%clk 0:00:03]}  Qe2 {[%clk 0:00:32]} 38. Kg2 {[%clk 0:00:02]}  Qf3+ {[%clk 0:00:25]} 39. Kh2 {[%clk 0:00:02]}  bxc4 {[%clk 0:00:24]} 40. Qg5 {[%clk 0:00:03]}  Qg4 {[%clk 0:00:24]} 41. Qc5 {[%clk 0:00:02]}  Qf5 {[%clk 0:00:20]} 42. Kg2 {[%clk 0:00:02]}  Qxc5 {[%clk 0:00:19]} 43. b4 {[%clk 0:00:02]}  cxb3 {[%clk 0:00:18]} 44. g4 {[%clk 0:00:03]}  Qd5+ {[%clk 0:00:18]} 45. Kh2 {[%clk 0:00:03]}  Qe5+ {[%clk 0:00:17]} 46. Kg2 {[%clk 0:00:03]}  Qe4+ {[%clk 0:00:18]} 47. Kh2 {[%clk 0:00:03]}  Be5+ {[%clk 0:00:18]} 48. Kh3 {[%clk 0:00:03]}  Qf3# {[%clk 0:00:18]} 0-1


[Site "https://www.chess.com"]

[Event "Titled Tuesday Blitz May 9 Late 2023"]
[White "Hartikainen, Jarmo"]
[Black "Urbina Perez, Juan Antonio"]
[WhiteFideId "503134"]
[BlackFideId "2217368"]
[WhiteElo "2081"]
[BlackElo "2197"]
[Result "0-1"]
[Round "03"]
[TimeControl "180+2"]
[Date "2023.05.09"]
[WhiteClock "0:00:29"]
[BlackClock "0:02:19"]

1. e4 {[%clk 0:03:00]}  e5 {[%clk 0:02:58]} 2. Nf3 {[%clk 0:03:00]}  Nc6 {[%clk 0:02:58]} 3. Bc4 {[%clk 0:03:00]}  d6 {[%clk 0:02:57]} 4. d4 {[%clk 0:02:55]}  exd4 {[%clk 0:02:54]} 5. Nxd4 {[%clk 0:02:54]}  Nf6 {[%clk 0:02:53]} 6. Nc3 {[%clk 0:02:53]}  Be7 {[%clk 0:02:52]} 7. f3 {[%clk 0:02:48]}  O-O {[%clk 0:02:49]} 8. Be3 {[%clk 0:02:48]}  a6 {[%clk 0:02:47]} 9. Qd2 {[%clk 0:02:45]}  Nxd4 {[%clk 0:02:46]} 10. Bxd4 {[%clk 0:02:42]}  b5 {[%clk 0:02:46]} 11. Be2 {[%clk 0:02:30]}  c5 {[%clk 0:02:43]} 12. Be3 {[%clk 0:02:27]}  b4 {[%clk 0:02:41]} 13. Nd5 {[%clk 0:02:26]}  Nxd5 {[%clk 0:02:41]} 14. exd5 {[%clk 0:02:27]}  Bf6 {[%clk 0:02:31]} 15. Rb1 {[%clk 0:02:09]}  Re8 {[%clk 0:02:30]} 16. c3 {[%clk 0:02:00]}  Ra7 {[%clk 0:02:22]} 17. cxb4 {[%clk 0:00:29]}  Rae7 {[%clk 0:02:19]} 0-1


[Site "https://www.chess.com"]